bitfinex/quotes_SOLUSD_20240725
["timestamp","ask_amount","ask_price","bid_price","bid_amount"]
[1721877774981,5.8613,170.61,170.54,6.2157]
[1721877775288,29.77,170.63,170.55,45.0]
[1721877775479,5.8619,170.6,170.54,6.2157]
[1721877775681,44.4217,170.63,170.54,6.2157]
[1721877776089,5.8626,170.58,170.54,6.2157]
[1721877776292,5.8628,170.57,170.54,6.2157]
[1721877777802,389.2,170.65,170.55,21.17262857]
[1721877777970,5.8608,170.63,170.55,21.17262857]
[1721877778882,5.8608,170.63,170.56,45.0]
[1721877779474,5.8608,170.63,170.57,1.1722569]
[1721877779673,5.8608,170.63,170.56,45.0]
[1721877780194,5.8603,170.64,170.56,45.0]
[1721877780400,5.8598,170.66,170.56,45.0]
[1721877780600,0.8074846,170.67,170.57,20.0]
[1721877780901,0.8074846,170.67,170.59,6.364]
[1721877781075,0.8074846,170.67,170.6,45.0]
[1721877781280,5.8596,170.66,170.6,45.0]
[1721877781770,5.3596,170.66,170.6,45.0]
[1721877782784,0.8074846,170.67,170.6,45.0]
[1721877783178,5.8596,170.66,170.6,45.0]
[1721877783698,5.8599,170.65,170.6,45.0]
[1721877784099,5.8599,170.66,170.6,45.0]
[1721877784280,5.8599,170.65,170.6,45.0]
[1721877784684,0.8074846,170.67,170.6,45.0]
[1721877785292,6.6667846,170.67,170.6,45.0]
[1721877785686,0.8074846,170.67,170.6,45.0]
[1721877786282,5.8599,170.65,170.6,45.0]
[1721877786487,0.8074846,170.67,170.6,45.0]
[1721877786889,0.8074846,170.67,170.61,1.17194152]
[1721877787201,0.8074846,170.67,170.6,46.17187297]
[1721877787578,0.8074846,170.67,170.61,1.17186105]
[1721877788880,6.6666846,170.67,170.6,45.0]
[1721877789095,0.8074846,170.67,170.6,45.0]
[1721877789313,5.8596,170.66,170.59,6.364]
[1721877789684,0.8074846,170.67,170.59,7.53602766]
[1721877789889,0.8074846,170.67,170.59,6.364]
[1721877790585,0.8074846,170.67,170.6,1.17189654]
[1721877790789,0.8074846,170.67,170.6,45.0]
[1721877791484,0.8074846,170.67,170.61,21.17192399]
[1721877791685,0.8074846,170.67,170.62,45.0]
[1721877791887,0.8074846,170.67,170.63,1.17170644]
[1721877792398,0.8074846,170.67,170.64,6.6588]
[1721877792602,0.8074846,170.67,170.65,45.0]
[1721877793687,0.8074846,170.67,170.64,6.6588]
[1721877795213,0.8074846,170.67,170.58,15.4669]
[1721877795400,5.8596,170.66,170.59,20.0]
[1721877795708,5.8596,170.66,170.58,22.1076]
[1721877796020,0.8074846,170.67,170.58,23.27963554]
[1721877796715,0.8074846,170.67,170.59,45.0]
[1721877796927,0.8074846,170.67,170.6,1.17185472]
[1721877797095,0.8074846,170.67,170.61,1.17178379]
[1721877797517,0.8074846,170.67,170.61,46.17178379]
[1721877797900,0.8074846,170.67,170.62,20.0]
[1721877798099,0.8074846,170.67,170.63,45.0]
[1721877799500,0.8074846,170.67,170.59,1.17177445]
[1721877799825,0.8074846,170.67,170.58,23.27948098]
[1721877800405,0.8074846,170.67,170.58,22.1076]
[1721877800608,0.8074846,170.67,170.58,6.6407]
[1721877800609,30.27095931,170.66,170.58,6.6407]
[1721877800809,5.862,170.59,170.53,15.9113]
[1721877801121,29.77,170.63,170.53,15.9113]
[1721877801506,5.8616,170.6,170.53,15.9113]
[1721877801709,0.50095931,170.6,170.53,15.9113]
[1721877801910,15.8589,170.62,170.49,22.8485]
[1721877802121,5.8619,170.6,170.49,22.8485]
[1721877802744,5.862,170.59,170.5,1.17256882]
[1721877803034,5.8623,170.58,170.49,22.8485]
[1721877803241,0.50095931,170.61,170.49,22.8485]
[1721877803608,30.27095931,170.6,170.49,22.8485]
[1721877804108,30.27095931,170.6,170.5,20.0]
[1721877804431,5.8628,170.57,170.5,20.0]
[1721877804738,5.8623,170.58,170.5,20.0]
[1721877805106,5.8647,170.51,170.45,6.2087]
[1721877805308,5.8647,170.51,170.37,20.0]
[1721877805309,0.50095931,170.5,170.4,6.2087]
[1721877805714,5.8665,170.46,170.4,6.2087]
[1721877806043,5.8658,170.48,170.4,6.2087]
[1721877806418,30.27095931,170.49,170.4,6.2087]
[1721877806933,0.50095931,170.48,170.4,6.2087]
[1721877807126,5.8664,170.46,170.4,6.2087]
[1721877807424,0.50095931,170.48,170.4,6.2087]
[1721877807634,5.8661,170.47,170.4,6.2087]
[1721877808008,5.8664,170.46,170.4,6.2087]
[1721877809330,5.8668,170.45,170.4,6.2087]
[1721877809852,5.8667,170.46,170.4,6.2087]
[1721877810809,5.8669,170.45,170.4,6.2087]
[1721877811308,5.8672,170.44,170.4,6.2087]
[1721877811514,5.8685,170.4,170.35,23.053]
[1721877811836,5.8695,170.38,170.31,23.053]
[1721877812028,5.8688,170.4,170.31,23.053]
[1721877812531,0.50095931,170.43,170.31,23.053]
[1721877812749,5.8686,170.4,170.31,23.053]
[1721877814634,5.8689,170.39,170.31,23.053]
[1721877814838,0.50095931,170.42,170.31,23.053]
[1721877815050,33.54,170.4,170.27,6.2138]
[1721877815342,0.50095931,170.39,170.27,6.2138]
[1721877815549,33.54,170.4,170.27,7.3880265]
[1721877815719,33.54,170.4,170.27,7.3879396]
[1721877816720,5.8699,170.36,170.27,6.2138]
[1721877818039,5.8699,170.36,170.28,46.17413814]
[1721877818247,14.67,170.42,170.29,20.0]
[1721877818416,389.2,170.43,170.3,46.17394347]
[1721877818817,5.8685,170.4,170.3,46.17394347]
[1721877819448,389.2,170.43,170.3,45.0]
[1721877819449,5.8689,170.39,170.3,45.0]
[1721877819651,5.8694,170.38,170.3,45.0]
[1721877819857,18.17095931,170.42,170.3,45.0]
[1721877820046,0.50095931,170.42,170.29,20.0]
[1721877820244,5.8695,170.37,170.28,20.0]
[1721877820555,403.8689,170.43,170.28,20.0]
[1721877820556,5.8691,170.39,170.29,1.17408912]
[1721877821071,5.8691,170.39,170.3,1.17397913]
[1721877821266,5.8685,170.4,170.3,1.17397913]
[1721877821434,0.50095931,170.42,170.3,1.17397913]
[1721877821634,0.50095931,170.42,170.29,46.17392515]
[1721877821834,0.50095931,170.42,170.29,45.0]
[1721877822133,5.8703,170.35,170.29,45.0]
[1721877822332,5.8703,170.35,170.28,20.0]
[1721877822545,14.6717,170.4,170.28,20.0]
[1721877822748,14.6717,170.4,170.27,6.2138]
[1721877822749,5.8708,170.34,170.27,6.2138]
[1721877822958,5.8719,170.31,170.27,6.2138]
[1721877823261,17.67,170.4,170.2,1.02234932]
[1721877823262,5.873,170.27,170.21,23.2677]
[1721877823640,5.8734,170.26,170.21,23.2677]
[1721877824178,0.50095931,170.3,170.21,23.2677]
[1721877824456,33.54,170.33,170.22,1.17472776]
[1721877824759,33.54,170.33,170.21,23.2677]
[1721877824760,0.50095931,170.33,170.21,23.2677]
[1721877824929,5.872,170.3,170.21,24.44226703]
[1721877825439,5.872,170.3,170.21,23.2677]
[1721877825644,5.872,170.3,170.22,45.0]
[1721877825938,5.8716,170.32,170.23,1.1745406]
[1721877826148,15.17685931,170.35,170.22,45.0]
[1721877826329,5.8723,170.29,170.23,20.0]
[1721877826530,5.8733,170.27,170.21,23.2677]
[1721877826746,15.17935931,170.32,170.21,23.2677]
[1721877826948,6.1181382,170.35,170.22,1.17468957]
[1721877827162,5.8711,170.33,170.22,1.17439114]
[1721877827452,5.8711,170.33,170.22,21.17439114]
[1721877827838,5.8711,170.33,170.23,45.0]
[1721877829140,5.8711,170.33,170.24,1.17436945]
[1721877829346,5.8711,170.33,170.24,21.17436945]
[1721877829556,5.8713,170.32,170.25,45.0]
[1721877830141,5.8717,170.31,170.25,45.0]
[1721877831246,443.53246192,170.37,170.25,45.0]
[1721877831247,5.8713,170.32,170.25,45.0]
[1721877831449,5.8709,170.33,170.25,45.0]
[1721877834239,54.33246192,170.37,170.25,46.17437086]
[1721877834240,29.86,170.35,170.25,46.17437086]
[1721877834965,29.86,170.38,170.26,6.6614]
[1721877835171,29.86,170.38,170.28,15.9204]
[1721877835381,29.86,170.35,170.29,45.0]
[1721877835538,5.8713,170.32,170.29,45.0]
[1721877835743,29.86,170.35,170.29,45.0]
[1721877836046,5.8706,170.34,170.29,45.0]
[1721877837363,5.8713,170.32,170.28,15.9204]
[1721877837881,5.8713,170.32,170.26,6.6614]
[1721877837882,29.86,170.32,170.26,6.6614]
[1721877838242,34.10095931,170.34,170.26,6.6614]
[1721877838545,14.6779,170.33,170.23,16.6458]
[1721877838765,14.6779,170.33,170.22,6.0994]
[1721877838766,0.50095931,170.32,170.22,6.0994]
[1721877838948,5.8729,170.28,170.22,6.0994]
[1721877839269,5.8715,170.32,170.23,1.17458774]
[1721877839462,5.8715,170.32,170.24,1.17447858]
[1721877839772,5.8717,170.31,170.22,7.27388031]
[1721877840371,5.8717,170.31,170.23,45.0]
[1721877840547,5.8711,170.33,170.24,1.17448101]
[1721877840946,33.6,170.34,170.23,45.0]
[1721877841145,5.8721,170.3,170.23,45.0]
[1721877841749,5.8724,170.29,170.23,45.0]
[1721877841967,5.872,170.3,170.24,1.17458007]
[1721877842270,5.8719,170.31,170.23,45.0]
[1721877842439,48.2768,170.34,170.23,45.0]
[1721877842643,48.2768,170.34,170.22,6.0994]
[1721877842644,5.8727,170.28,170.22,6.0994]
[1721877842861,48.2768,170.34,170.23,1.17467945]
[1721877843251,5.8718,170.31,170.24,1.17453879]
[1721877843658,48.77775931,170.34,170.22,6.0994]
[1721877843853,5.8726,170.29,170.22,6.0994]
[1721877844267,5.8719,170.31,170.23,1.17463837]
[1721877844471,5.8719,170.31,170.24,1.17456233]
[1721877845169,5.8713,170.32,170.24,1.17456233]
[1721877845370,5.8713,170.32,170.23,65.0]
[1721877846097,22.63451811,170.41,170.25,6.5497]
[1721877846386,389.2,170.42,170.26,66.17420367]
[1721877846547,5.8689,170.39,170.28,21.6986]
[1721877846749,389.2,170.42,170.29,46.17401914]
[1721877846961,389.2,170.42,170.3,1.17401746]
[1721877847171,5.8689,170.39,170.3,1.17401746]
[1721877847372,5.8683,170.41,170.3,1.17401746]
[1721877847569,5.8676,170.43,170.3,21.17401746]
[1721877847766,395.067,170.45,170.32,6.0586]
[1721877848074,5.8662,170.47,170.33,82.10865187]
[1721877849055,33.6,170.48,170.33,82.10865187]
[1721877849056,34.10095931,170.48,170.33,82.10865187]
[1721877849270,33.6,170.48,170.33,82.10865187]
[1721877849469,5.8662,170.47,170.33,82.10865187]
[1721877849662,0.50095931,170.51,170.34,6.4159]
[1721877849965,0.50095931,170.51,170.35,66.17340592]
[1721877850162,0.50095931,170.51,170.35,65.0]
[1721877850573,5.8666,170.46,170.35,65.0]
[1721877850759,5.8661,170.47,170.36,1.17357587]
[1721877850960,427.64645594,170.52,170.37,6.3605]
[1721877851162,0.50095931,170.51,170.38,65.0]
[1721877851469,5.8677,170.43,170.38,45.0]
[1721877851673,5.8678,170.43,170.37,6.3605]
[1721877852478,5.868,170.42,170.37,6.3605]
[1721877852979,5.8674,170.44,170.37,6.3605]
[1721877853678,5.8667,170.46,170.37,7.53420379]
[1721877853973,5.8658,170.48,170.38,46.17355413]
[1721877855168,395.0652,170.5,170.38,46.17355413]
[1721877855367,5.8652,170.5,170.39,35.5274]
[1721877855676,5.8652,170.5,170.4,46.17327371]
[1721877855875,5.8655,170.49,170.4,46.17327371]
[1721877856666,5.8645,170.52,170.41,6.3755]
[1721877856884,5.8647,170.51,170.42,65.0]
[1721877857070,422.8,170.55,170.43,1.17310228]
[1721877857582,389.2,170.55,170.43,1.17310228]
[1721877857783,5.8638,170.54,170.43,1.17310228]
[1721877857970,5.8641,170.53,170.43,1.17310228]
[1721877858566,5.8637,170.54,170.43,1.17310228]
[1721877858766,5.8637,170.54,170.44,16.2642]
[1721877858977,5.8637,170.54,170.46,6.0161]
[1721877859281,5.8637,170.54,170.46,7.18905198]
[1721877859584,5.8637,170.54,170.47,45.0]
[1721877860175,14.6568,170.57,170.46,6.0161]
[1721877860366,15.15775931,170.57,170.47,45.0]
[1721877860988,5.8644,170.52,170.47,45.0]
[1721877861363,5.864,170.53,170.47,45.0]
[1721877862186,15.15775931,170.57,170.47,45.0]
[1721877862187,5.8644,170.52,170.47,45.0]
[1721877862688,5.864,170.54,170.47,45.0]
[1721877863489,5.8641,170.53,170.47,45.0]
[1721877863872,5.8636,170.55,170.48,1.17300441]
[1721877864069,5.8636,170.55,170.49,1.17288516]
[1721877864784,5.863,170.57,170.49,1.17288516]
[1721877865090,314.1648,170.62,170.48,1.17287382]
[1721877865091,30.7596,170.62,170.48,1.17287382]
[1721877865267,0.50095931,170.61,170.48,1.17287382]
[1721877865471,0.50095931,170.61,170.47,46.17273745]
[1721877866188,5.863,170.56,170.47,46.17273745]
[1721877866387,395.30787195,170.63,170.48,15.1331]
[1721877866567,5.861,170.62,170.49,72.32488772]
[1721877866770,389.2,170.63,170.51,15.1331]
[1721877867076,395.0606,170.63,170.53,6.1524]
[1721877867279,5.8609,170.62,170.54,46.17237206]
[1721877867487,395.0606,170.63,170.55,1.17240621]
[1721877867681,5.8606,170.63,170.55,1.17240621]
[1721877867879,5.8609,170.62,170.55,1.17240621]
[1721877868485,29.75,170.65,170.55,1.17240621]
[1721877868486,5.8606,170.63,170.55,1.17240621]
[1721877868664,5.8606,170.63,170.55,21.17240621]
[1721877868869,5.8606,170.63,170.56,45.0]
[1721877869197,5.8606,170.63,170.57,1.17230175]
[1721877869495,5.861,170.62,170.56,45.0]
[1721877869867,5.8605,170.64,170.56,45.0]
[1721877870075,0.8074846,170.67,170.58,6.2975]
[1721877870391,0.8074846,170.67,170.59,45.0]
[1721877871378,0.8074846,170.67,170.6,1.17201776]
[1721877874477,6.6666846,170.67,170.6,1.17201776]
[1721877874681,0.8074846,170.67,170.6,1.17201776]
[1721877875273,0.8074846,170.67,170.6,21.17201776]
[1721877875479,0.8074846,170.67,170.61,45.0]
[1721877876478,0.8074846,170.67,170.62,1.17188736]
[1721877876681,0.8074846,170.67,170.61,45.0]
[1721877877294,0.8074846,170.67,170.61,46.1718072]
[1721877877495,0.8074846,170.67,170.61,45.0]
[1721877878293,6.6667846,170.67,170.6,20.0]
[1721877878491,5.8596,170.66,170.59,20.0]
[1721877878701,0.8074846,170.67,170.59,20.0]
[1721877878880,5.8599,170.66,170.59,20.0]
[1721877879090,5.8606,170.63,170.58,6.2975]
[1721877879282,5.8601,170.65,170.58,6.2975]
[1721877879503,5.8601,170.65,170.59,1.17214849]
[1721877879884,0.8074846,170.67,170.59,1.17214849]
[1721877880296,0.8074846,170.67,170.59,21.17214849]
[1721877880581,0.8074846,170.67,170.59,20.0]
[1721877880787,0.8074846,170.67,170.6,45.0]
[1721877880986,6.6666846,170.67,170.6,45.0]
[1721877881215,0.8074846,170.67,170.61,20.0]
[1721877881414,0.8074846,170.67,170.62,45.0]
[1721877882808,0.8074846,170.67,170.58,6.2975]
[1721877883190,0.50095931,170.66,170.58,6.2975]
[1721877883695,5.8599,170.65,170.58,6.2975]
[1721877884022,6.6669846,170.67,170.58,6.2975]
[1721877884186,5.8596,170.66,170.58,6.2975]
[1721877884823,5.8596,170.66,170.59,45.0]
[1721877885186,0.8074846,170.67,170.59,45.0]
[1721877885395,6.6669846,170.67,170.59,45.0]
[1721877885811,0.50095931,170.66,170.58,6.2975]
[1721877886025,5.8602,170.64,170.58,6.2975]
[1721877887008,0.8074846,170.67,170.58,6.2975]
[1721877887207,6.6668846,170.67,170.58,7.46972072]
[1721877887380,0.8074846,170.67,170.58,7.46972072]
[1721877887580,0.8074846,170.67,170.59,45.0]
[1721877888008,0.8074846,170.67,170.59,46.17213716]
[1721877888009,5.8596,170.66,170.59,46.17213716]
[1721877888209,6.6666846,170.67,170.59,46.17213716]
[1721877888789,0.8074846,170.67,170.59,46.17213716]
[1721877888989,0.8074846,170.67,170.59,45.0]
[1721877889218,6.6666846,170.67,170.59,45.0]
[1721877890119,0.8074846,170.67,170.59,45.0]
[1721877890613,5.8596,170.66,170.59,45.0]
[1721877890816,0.8074846,170.67,170.59,45.0]
[1721877891029,5.8597,170.66,170.59,45.0]
[1721877891238,0.8074846,170.67,170.59,45.0]
[1721877891239,1.30844391,170.67,170.59,45.0]
[1721877891389,5.8606,170.64,170.59,45.0]
[1721877891584,0.8074846,170.67,170.59,45.0]
[1721877891886,5.8601,170.65,170.59,45.0]
[1721877893016,5.8604,170.64,170.59,45.0]
[1721877893311,1.30844391,170.67,170.58,6.2975]
[1721877894413,5.8609,170.62,170.58,6.2975]
[1721877894788,5.8613,170.61,170.58,6.2975]
[1721877895889,5.8613,170.61,170.5,22.6944]
[1721877896118,5.8613,170.61,170.51,65.0]
[1721877897212,6.36265931,170.6,170.51,65.0]
[1721877897628,5.8621,170.59,170.51,20.0]
[1721877897792,5.8621,170.59,170.5,22.6944]
[1721877897992,5.8616,170.61,170.5,22.6944]
[1721877898814,5.8616,170.61,170.5,23.86689849]
[1721877899021,5.8616,170.61,170.51,45.0]
[1721877899221,5.8617,170.6,170.51,45.0]
[1721877901017,29.74,170.62,170.51,45.0]
[1721877901216,29.74,170.59,170.5,22.6944]
[1721877901418,5.863,170.57,170.5,22.6944]
[1721877901594,5.8631,170.56,170.5,22.6944]
[1721877901794,5.8633,170.55,170.5,22.6944]
[1721877902202,5.863,170.56,170.5,22.6944]
[1721877902537,30.24095931,170.59,170.5,22.6944]
[1721877902538,5.8627,170.57,170.5,22.6944]
[1721877903124,5.8631,170.56,170.5,22.6944]
[1721877905409,35.6022,170.59,170.5,22.6944]
[1721877905594,29.74,170.59,170.5,22.6944]
[1721877905799,5.8616,170.6,170.51,45.0]
[1721877906019,6.36255931,170.6,170.51,45.0]
[1721877906225,5.8613,170.62,170.51,45.0]
[1721877906512,0.50095931,170.61,170.51,45.0]
[1721877907317,0.50095931,170.6,170.5,22.6944]
[1721877907517,5.862,170.59,170.51,45.0]
[1721877907817,11.07636356,170.62,170.5,22.6944]
[1721877907818,5.8627,170.57,170.5,22.6944]
[1721877907998,29.74,170.61,170.5,22.6944]
[1721877908199,29.74,170.61,170.51,45.0]
[1721877908696,5.862,170.6,170.51,45.0]
[1721877909606,0.50095931,170.6,170.51,45.0]
[1721877909918,35.6016,170.61,170.51,46.17259474]
[1721877910119,35.6003,170.64,170.52,1.17258299]
[1721877910420,389.2,170.66,170.54,15.8273]
[1721877910610,389.2,170.66,170.55,66.17220029]
[1721877911323,389.2,170.66,170.56,6.2869]
[1721877911528,389.2,170.66,170.57,66.17201639]
[1721877911709,389.2,170.65,170.57,66.17201639]
[1721877913127,389.2,170.65,170.57,65.0]
[1721877914126,389.2,170.65,170.57,20.0]
[1721877914702,29.74,170.64,170.56,6.2869]
[1721877914907,35.6005,170.64,170.56,6.2869]
[1721877915521,29.74,170.64,170.56,6.2869]
[1721877916219,29.74,170.64,170.57,45.0]
[1721877917026,395.0596,170.66,170.58,1.17221082]
[1721877917198,389.2,170.66,170.58,1.17210975]
[1721877917403,389.2,170.66,170.58,21.17210975]
[1721877917628,389.2,170.66,170.6,15.1745]
[1721877917924,389.2,170.66,170.61,46.17194997]
[1721877918128,389.2,170.66,170.62,6.0999]
[1721877918426,389.2,170.66,170.63,45.0]
[1721877921733,0.8074846,170.67,170.63,45.0]
[1721877922808,5.8599,170.66,170.62,6.0999]
[1721877923008,0.8074846,170.67,170.62,6.0999]
[1721877923238,1.30844391,170.67,170.6,15.1745]
[1721877923406,5.8604,170.64,170.6,15.1745]
[1721877923614,5.8604,170.64,170.58,6.5208]
[1721877923916,5.8599,170.66,170.58,6.5208]
[1721877924317,0.8074846,170.67,170.58,6.5208]
[1721877924508,6.6669846,170.67,170.58,6.5208]
[1721877925128,5.8601,170.65,170.58,6.5208]
[1721877925632,29.74,170.66,170.58,6.5208]
[1721877925934,6.36145931,170.64,170.58,6.5208]
[1721877926159,5.8605,170.64,170.58,6.5208]
[1721877927334,29.74,170.66,170.58,6.5208]
[1721877928310,29.74,170.66,170.59,45.0]
[1721877929539,6.6666846,170.67,170.59,45.0]
[1721877929845,5.8597,170.66,170.59,45.0]
[1721877930338,5.8603,170.64,170.58,6.5208]
[1721877930537,5.8606,170.63,170.58,6.5208]
[1721877930918,5.8603,170.64,170.58,6.5208]
[1721877932219,0.50095931,170.63,170.58,6.5208]
[1721877932423,5.8613,170.62,170.53,6.6534]
[1721877932630,0.50095931,170.61,170.53,6.6534]
[1721877932943,30.24095931,170.6,170.53,6.6534]
[1721877933950,5.8623,170.58,170.53,6.6534]
[1721877934143,6.36295931,170.59,170.53,6.6534]
[1721877934347,29.74,170.6,170.53,6.6534]
[1721877934647,395.30858546,170.63,170.54,45.0]
[1721877934648,389.2,170.63,170.54,45.0]
[1721877935548,389.2,170.63,170.55,1.17245483]
[1721877936939,389.2,170.63,170.54,45.0]
[1721877938463,389.2,170.63,170.55,17.04140889]
[1721877938636,389.2,170.63,170.56,65.0]
[1721877938834,389.2,170.63,170.57,1.17212613]
[1721877939154,389.2,170.63,170.56,66.17212613]
[1721877939450,30.5474846,170.67,170.56,66.17212613]
[1721877939650,36.4066846,170.67,170.56,66.17212613]
[1721877940559,36.4066846,170.67,170.58,6.2118]
[1721877940560,0.8074846,170.67,170.58,6.2118]
[1721877940746,0.8074846,170.67,170.6,16.1158]
[1721877940955,0.8074846,170.67,170.61,21.1716893]
[1721877941174,0.8074846,170.67,170.61,66.1716893]
[1721877946935,0.3074846,170.67,170.61,66.1716893]
[1721877949443,0.3074846,170.67,170.61,21.1716893]
[1721877950951,0.3074846,170.67,170.62,45.0]
[1721877951150,0.3074846,170.67,170.63,20.0]
[1721877951351,0.3074846,170.67,170.64,45.0]
[1721877952868,0.3074846,170.67,170.65,1.17177226]
[1721877953859,0.3074846,170.67,170.66,21.9697]
[1721877954066,0.3074846,170.67,170.66,86.9697]
[1721877957580,29.74,170.78,170.66,86.9697]
[1721877957757,29.74,170.78,170.67,66.17135399]
[1721877957961,29.74,170.78,170.68,1.17135387]
[1721877958700,5.8549,170.8,170.68,1.17135387]
[1721877959047,4.8549,170.8,170.68,1.17135387]
[1721877959559,29.74,170.81,170.68,1.17135387]
[1721877959966,0.50095931,170.8,170.68,1.17135387]
[1721877960482,6.35575931,170.8,170.67,66.17122886]
[1721877960944,29.74,170.81,170.68,1.17132636]
[1721877961149,30.24095931,170.81,170.68,1.17132636]
[1721877961567,29.74,170.81,170.68,1.17132636]
[1721877962896,29.74,170.81,170.69,6.6228]
[1721877963177,29.74,170.81,170.7,45.0]
[1721877963178,35.5946,170.81,170.7,45.0]
[1721877963369,29.74,170.81,170.7,66.17117628]
[1721877963767,29.74,170.81,170.7,65.0]
[1721877964677,0.50095931,170.8,170.7,65.0]
[1721877964982,29.74,170.81,170.7,65.0]
[1721877965677,0.8074846,170.84,170.73,26.3363]
[1721877965899,0.8074846,170.84,170.74,65.0]
[1721877966057,0.8074846,170.84,170.75,1.1707132]
[1721877969383,0.8074846,170.84,170.76,22.0952]
[1721877969589,0.50095931,170.95,170.78,6.2171]
[1721877969590,35.5901,170.94,170.78,6.2171]
[1721877969782,29.74,170.94,170.79,21.17038412]
[1721877969964,0.50095931,170.93,170.79,66.17038412]
[1721877970166,35.5911,170.91,170.79,66.17038412]
[1721877970364,29.74,170.91,170.79,66.17038412]
[1721877971783,29.74,170.94,170.79,66.17038412]
[1721877971989,35.59,170.94,170.8,15.8781]
[1721877972171,35.59,170.94,170.81,66.17035645]
[1721877972373,29.74,170.94,170.81,66.17035645]
[1721877972677,30.24095931,170.94,170.81,65.0]
[1721877973185,5.8507,170.92,170.81,65.0]
[1721877973400,35.5903,170.94,170.82,1.17042544]
[1721877974468,5.8503,170.93,170.81,66.17033663]
[1721877974673,0.50095931,170.92,170.81,65.0]
[1721877975171,5.8513,170.91,170.81,65.0]
[1721877975373,5.8514,170.9,170.81,20.0]
[1721877975568,5.851,170.92,170.81,20.0]
[1721877975793,0.50095931,170.92,170.81,20.0]
[1721877975987,5.8509,170.92,170.81,20.0]
[1721877976222,11.92894184,170.96,170.84,6.1647]
[1721877976377,5.8496,170.95,170.85,21.17024837]
[1721877976888,17.67,170.98,170.84,6.1647]
[1721877976889,5.8511,170.91,170.84,6.1647]
[1721877977090,6.35205931,170.91,170.84,6.1647]
[1721877977273,5.8513,170.9,170.84,6.1647]
[1721877977666,6.07674021,170.98,170.84,6.1647]
[1721877977870,5.8496,170.96,170.84,6.1647]
[1721877978066,29.74,170.97,170.84,6.1647]
[1721877978289,0.50095931,170.96,170.84,6.1647]
[1721877978486,30.24095931,170.97,170.84,7.33492979]
[1721877978703,62.53405931,170.97,170.84,6.1647]
[1721877978883,62.53405931,170.97,170.85,45.0]
[1721877979087,5.8508,170.92,170.85,45.0]
[1721877980688,30.24095931,170.91,170.84,6.1647]
[1721877980884,35.5911,170.91,170.84,6.1647]
[1721877981092,29.74,170.91,170.84,6.1647]
[1721877981393,29.74,170.94,170.84,6.1647]
[1721877981590,35.5901,170.94,170.84,6.1647]
[1721877982089,35.5901,170.94,170.85,45.0]
[1721877982391,389.2,170.96,170.86,20.0]
[1721877982690,389.2,170.96,170.87,45.0]
[1721877982895,395.0493,170.96,170.87,45.0]
[1721877983078,395.0493,170.96,170.88,20.0]
[1721877983278,389.2,170.96,170.89,45.0]
[1721877984105,395.0493,170.96,170.89,45.0]
[1721877984285,5.8497,170.95,170.84,7.33480978]
[1721877984584,5.8497,170.95,170.85,65.0]
[1721877984978,389.2,170.96,170.85,65.0]
[1721877985175,5.8497,170.95,170.85,65.0]
[1721877985678,5.85,170.94,170.85,65.0]
[1721877987595,389.2,170.95,170.86,1.17029658]
[1721877987781,389.2,170.95,170.85,65.0]
[1721877988886,389.2,170.95,170.86,1.17012533]
[1721877989401,389.2,170.95,170.85,66.16999149]
[1721877990776,389.2,170.95,170.85,65.0]
[1721877992403,389.2,170.95,170.86,1.17003239]
[1721877993102,5.8486,170.98,170.86,1.17003239]
[1721877993289,5.849,170.97,170.86,1.17003239]
[1721877994103,5.849,170.97,170.85,66.16998085]